[Event "Championnat d'Europe Rapide"]
[Date "2024.12.08"]
[White "Laurusas, Tomas"]
[Black "Samunenkov, Ihor"]
[WhiteElo "2578"]
[BlackElo "2543"]
[Round "11.17"]
[Result "1-0"]
[TimeControl "900+10"]

1. d4 {[%emt 00:00:01] [%clk 00:15:19]} Nf6 {[%emt 00:00:04] [%clk 00:15:16]} 2.
c4 {[%emt 00:00:02] [%clk 00:15:28]} e6 {[%emt 00:00:02] [%clk 00:15:23]} 3. Nf3
{[%emt 00:00:01] [%clk 00:15:36]} d5 {[%emt 00:00:02] [%clk 00:15:31]} 4. Nc3
{[%emt 00:00:02] [%clk 00:15:45]} c6 {[%emt 00:00:12] [%clk 00:15:29]} 5. e3
{[%emt 00:00:03] [%clk 00:15:52]} Nbd7 {[%emt 00:00:02] [%clk 00:15:37]} 6. Be2
{[%emt 00:00:01] [%clk 00:16:01]} Bd6 {[%emt 00:00:03] [%clk 00:15:44]} 7. O-O
{[%emt 00:00:02] [%clk 00:16:08]} O-O {[%emt 00:00:03] [%clk 00:15:51]} 8. b3
{[%emt 00:00:02] [%clk 00:16:17]} b6 {[%emt 00:00:07] [%clk 00:15:54]} 9. Bb2
{[%emt 00:00:01] [%clk 00:16:26]} Bb7 {[%emt 00:00:02] [%clk 00:16:02]} 10. Bd3
{[%emt 00:00:01] [%clk 00:16:35]} Qe7 {[%emt 00:00:09] [%clk 00:16:03]} 11. Re1
{[%emt 00:00:29] [%clk 00:16:16]} Rad8 {[%emt 00:01:01] [%clk 00:15:12]} 12. Qe2
{[%emt 00:00:02] [%clk 00:16:24]} Rfe8 {[%emt 00:00:33] [%clk 00:14:49]} 13.
Rad1 {[%emt 00:00:31] [%clk 00:16:02]} h6 {[%emt 00:02:45] [%clk 00:12:15]} 14.
Qc2 {[%emt 00:01:51] [%clk 00:14:21]} c5 {[%emt 00:01:48] [%clk 00:10:37]} 15.
cxd5 {[%emt 00:00:04] [%clk 00:14:27]} exd5 {[%emt 00:00:07] [%clk 00:10:40]}
16. Ne2 {[%emt 00:00:22] [%clk 00:14:15]} Rc8 {[%emt 00:01:54] [%clk 00:08:56]}
17. dxc5 {[%emt 00:00:06] [%clk 00:14:20]} Nxc5 {[%emt 00:00:08] [%clk
00:08:57]} 18. Qb1 {[%emt 00:01:06] [%clk 00:13:24]} Nfe4 {[%emt 00:01:08] [%clk
00:07:58]} 19. Bb5 {[%emt 00:00:27] [%clk 00:13:07]} Red8 {[%emt 00:01:49] [%clk
00:06:19]} 20. Ned4 {[%emt 00:00:02] [%clk 00:13:16]} g6 {[%emt 00:00:15] [%clk
00:06:14]} 21. Rc1 {[%emt 00:00:21] [%clk 00:13:05]} a6 {[%emt 00:00:26] [%clk
00:05:58]} 22. Bf1 {[%emt 00:00:01] [%clk 00:13:13]} Kh7 {[%emt 00:00:27] [%clk
00:05:42]} 23. Ba1 {[%emt 00:01:11] [%clk 00:12:12]} Nd7 {[%emt 00:01:13] [%clk
00:04:38]} 24. Rxc8 {[%emt 00:00:29] [%clk 00:11:54]} Rxc8 {[%emt 00:00:01]
[%clk 00:04:47]} 25. Rc1 {[%clk 00:12:03]} Re8 {[%emt 00:00:48] [%clk 00:04:08]}
26. Rc2 {[%emt 00:00:09] [%clk 00:12:05]} Ndf6 {[%emt 00:00:18] [%clk 00:04:00]}
27. h3 {[%emt 00:01:21] [%clk 00:10:53]} Bc5 {[%emt 00:00:44] [%clk 00:03:27]}
28. Bb2 {[%emt 00:00:10] [%clk 00:10:53]} Rc8 {[%emt 00:00:59] [%clk 00:02:38]}
29. Qc1 {[%emt 00:00:11] [%clk 00:10:52]} Re8 {[%emt 00:00:24] [%clk 00:02:23]}
30. b4 {[%emt 00:00:21] [%clk 00:10:43]} Bd6 {[%emt 00:00:13] [%clk 00:02:19]}
31. a3 {[%emt 00:00:15] [%clk 00:10:38]} Qd7 {[%emt 00:00:16] [%clk 00:02:12]}
32. Bd3 {[%emt 00:00:13] [%clk 00:10:35]} Rc8 {[%emt 00:00:24] [%clk 00:01:59]}
33. Rxc8 {[%emt 00:00:21] [%clk 00:10:24]} Qxc8 {[%emt 00:00:03] [%clk
00:02:06]} 34. Qxc8 {[%emt 00:00:27] [%clk 00:10:08]} Bxc8 {[%emt 00:00:02]
[%clk 00:02:14]} 35. Nc6 {[%clk 00:10:17]} Kg8 {[%emt 00:00:18] [%clk 00:02:05]}
36. a4 {[%emt 00:03:52] [%clk 00:06:35]} Bd7 {[%emt 00:00:20] [%clk 00:01:56]}
37. Nfe5 {[%emt 00:00:45] [%clk 00:06:00]} Bxe5 {[%emt 00:00:49] [%clk
00:01:16]} 38. Nxe5 {[%emt 00:00:04] [%clk 00:06:06]} Bxa4 {[%emt 00:00:02]
[%clk 00:01:24]} 39. Bxa6 {[%emt 00:00:30] [%clk 00:05:46]} Ne8 {[%emt 00:00:44]
[%clk 00:00:50]} 40. Bd4 {[%emt 00:01:01] [%clk 00:04:54]} Nc7 {[%emt 00:00:03]
[%clk 00:00:58]} 41. Bb7 {[%emt 00:00:01] [%clk 00:05:03]} b5 {[%emt 00:00:24]
[%clk 00:00:44]} 42. Bc6 {[%emt 00:02:26] [%clk 00:02:47]} Bb3 {[%emt 00:00:22]
[%clk 00:00:33]} 43. Bb6 {[%emt 00:00:52] [%clk 00:02:04]} Na6 {[%emt 00:00:02]
[%clk 00:00:41]} 44. Ba5 {[%clk 00:02:13]} Nd6 {[%emt 00:00:10] [%clk 00:00:41]}
45. Nd7 {[%emt 00:00:16] [%clk 00:02:07]} Kg7 {[%emt 00:00:32] [%clk 00:00:19]}
46. Nb6 {[%emt 00:00:16] [%clk 00:02:01]} Nc7 {[%emt 00:00:01] [%clk 00:00:28]}
47. Nd7 {[%emt 00:00:38] [%clk 00:01:33]} Ne6 {[%emt 00:00:07] [%clk 00:00:30]}
48. Bb6 {[%emt 00:00:21] [%clk 00:01:23]} Bc4 {[%emt 00:00:15] [%clk 00:00:26]}
49. Ba7 {[%emt 00:01:03] [%clk 00:00:29]} Nc8 {[%emt 00:00:16] [%clk 00:00:20]}
50. Bb8 {[%emt 00:00:08] [%clk 00:00:31]} f6 {[%emt 00:00:13] [%clk 00:00:17]}
51. Bb7 {[%emt 00:00:16] [%clk 00:00:26]} Ne7 {[%emt 00:00:02] [%clk 00:00:25]}
52. Bd6 {[%emt 00:00:21] [%clk 00:00:15]} Nf5 {[%emt 00:00:16] [%clk 00:00:18]}
53. Bb8 {[%emt 00:00:12] [%clk 00:00:12]} Nd8 {[%emt 00:00:08] [%clk 00:00:20]}
54. Ba8 {[%emt 00:00:08] [%clk 00:00:15]} d4 {[%emt 00:00:11] [%clk 00:00:20]}
55. exd4 {[%emt 00:00:13] [%clk 00:00:11]} Nxd4 {[%emt 00:00:03] [%clk
00:00:27]} 56. f3 {[%emt 00:00:04] [%clk 00:00:17]} N8c6 {[%emt 00:00:13] [%clk
00:00:24]} 57. Bd6 {[%emt 00:00:04] [%clk 00:00:23]} Kf7 {[%emt 00:00:21] [%clk
00:00:13]} 58. Bc5 {[%emt 00:00:02] [%clk 00:00:31]} g5 {[%emt 00:00:09] [%clk
00:00:14]} 59. Kf2 {[%emt 00:00:01] [%clk 00:00:40]} h5 {[%emt 00:00:06] [%clk
00:00:17]} 60. Nb6 {[%emt 00:00:10] [%clk 00:00:41]} Be6 {[%emt 00:00:08] [%clk
00:00:19]} 61. Bb7 {[%emt 00:00:23] [%clk 00:00:28]} Ke8 {[%emt 00:00:05] [%clk
00:00:23]} 62. g4 {[%emt 00:00:25] [%clk 00:00:14]} h4 {[%emt 00:00:06] [%clk
00:00:27]} 63. Ba6 {[%emt 00:00:02] [%clk 00:00:22]} Bb3 {[%emt 00:00:22] [%clk
00:00:15]} 64. Nc8 {[%emt 00:00:13] [%clk 00:00:20]} Kd7 {[%emt 00:00:12] [%clk
00:00:13]} 65. Nd6 {[%emt 00:00:02] [%clk 00:00:28]} Ba4 {[%emt 00:00:01] [%clk
00:00:21]} 66. Ne4 {[%emt 00:00:11] [%clk 00:00:26]} Ke6 {[%emt 00:00:10] [%clk
00:00:22]} 67. Bc8+ {[%emt 00:00:03] [%clk 00:00:33]} Kf7 {[%emt 00:00:01] [%clk
00:00:30]} 68. Bd7 {[%emt 00:00:21] [%clk 00:00:23]} Ne5 {[%emt 00:00:02] [%clk
00:00:38]} 69. Nd6+ {[%emt 00:00:15] [%clk 00:00:17]} Kg8 {[%emt 00:00:21] [%clk
00:00:27]} 70. Be8 {[%emt 00:00:06] [%clk 00:00:22]} Nec6 {[%emt 00:00:23] [%clk
00:00:13]} 71. Nf5 {[%emt 00:00:14] [%clk 00:00:19]} Nxf5 {[%emt 00:00:05] [%clk
00:00:18]} 72. gxf5 {[%clk 00:00:28]} Ne5 {[%emt 00:00:04] [%clk 00:00:24]} 73.
Ke3 {[%emt 00:00:02] [%clk 00:00:36]} Nc4+ {[%emt 00:00:13] [%clk 00:00:21]} 74.
Kd3 {[%emt 00:00:09] [%clk 00:00:36]} Kg7 {[%emt 00:00:13] [%clk 00:00:19]} 75.
f4 {[%emt 00:00:09] [%clk 00:00:37]} gxf4 {[%emt 00:00:12] [%clk 00:00:16]} 76.
Ke4 {[%clk 00:00:47]} Ne5 {[%emt 00:00:14] [%clk 00:00:12]} 77. Kxf4 {[%emt
00:00:01] [%clk 00:00:55]} Kg8 {[%emt 00:00:07] [%clk 00:00:15]} 78. Bd6 {[%emt
00:00:16] [%clk 00:00:51]} Nf7 {[%emt 00:00:11] [%clk 00:00:13]} 79. Bc5 {[%emt
00:00:38] [%clk 00:00:23]} Ne5 {[%emt 00:00:03] [%clk 00:00:21]} 80. Bd6 {[%emt
00:00:14] [%clk 00:00:18]} Nf7 {[%emt 00:00:02] [%clk 00:00:29]} 81. Bc7 {[%emt
00:00:04] [%clk 00:00:24]} Nh6 {[%emt 00:00:06] [%clk 00:00:32]} 82. Bd7 {[%emt
00:00:07] [%clk 00:00:28]} Kg7 {[%emt 00:00:09] [%clk 00:00:33]} 83. Bb6 {[%emt
00:00:03] [%clk 00:00:35]} Nf7 {[%emt 00:00:06] [%clk 00:00:37]} 84. Bc6 {[%emt
00:00:10] [%clk 00:00:35]} Ne5 {[%emt 00:00:23] [%clk 00:00:24]} 85. Be4 {[%clk
00:00:44]} Bb3 {[%emt 00:00:10] [%clk 00:00:24]} 86. Bd4 {[%emt 00:00:06] [%clk
00:00:48]} Nf7 {[%emt 00:00:09] [%clk 00:00:25]} 87. Bf2 {[%emt 00:00:06] [%clk
00:00:51]} Nd6 {[%emt 00:00:23] [%clk 00:00:13]} 88. Bb1 {[%emt 00:00:33] [%clk
00:00:28]} Bc4 {[%emt 00:00:08] [%clk 00:00:15]} 89. Bxh4 {[%emt 00:00:04] [%clk
00:00:35]} Bf1 {[%emt 00:00:01] [%clk 00:00:23]} 90. Kg4 {[%emt 00:00:08] [%clk
00:00:37]} Be2+ {[%emt 00:00:06] [%clk 00:00:27]} 91. Kf4 {[%emt 00:00:16] [%clk
00:00:31]} Bf1 {[%emt 00:00:04] [%clk 00:00:33]} 92. Kg4 {[%emt 00:00:06] [%clk
00:00:35]} Be2+ {[%emt 00:00:02] [%clk 00:00:41]} 93. Kg3 {[%emt 00:00:02] [%clk
00:00:43]} Nc4 {[%emt 00:00:14] [%clk 00:00:37]} 94. Kf2 {[%emt 00:00:11] [%clk
00:00:42]} Bd1 {[%emt 00:00:35] [%clk 00:00:12]} 95. Bd3 {[%emt 00:00:21] [%clk
00:00:31]} Bh5 {[%emt 00:00:10] [%clk 00:00:12]} 96. Bg3 {[%emt 00:00:03] [%clk
00:00:38]} Be8 {[%emt 00:00:03] [%clk 00:00:19]} 97. Be4 {[%emt 00:00:08] [%clk
00:00:40]} Bd7 {[%emt 00:00:04] [%clk 00:00:25]} 98. Bf4 {[%emt 00:00:17] [%clk
00:00:33]} Nb6 {[%emt 00:00:20] [%clk 00:00:15]} 99. Ke3 {[%emt 00:00:04] [%clk
00:00:39]} Nc8 {[%emt 00:00:06] [%clk 00:00:20]} 100. Bc7 {[%emt 00:00:16] [%clk
00:00:32]} Ne7 {[%emt 00:00:03] [%clk 00:00:27]} 101. Kd4 {[%emt 00:00:27] [%clk
00:00:16]} Nxf5+ {[%emt 00:00:12] [%clk 00:00:25]} 102. Kc5 {[%emt 00:00:02]
[%clk 00:00:23]} Nh4 {[%emt 00:00:22] [%clk 00:00:12]} 103. Bg3 {[%emt 00:00:11]
[%clk 00:00:23]} Ng6 {[%emt 00:00:10] [%clk 00:00:12]} 104. h4 {[%emt 00:00:16]
[%clk 00:00:17]} f5 {[%emt 00:00:03] [%clk 00:00:19]} 105. Bd3 {[%emt 00:00:08]
[%clk 00:00:20]} f4 {[%emt 00:00:07] [%clk 00:00:21]} 106. Bf2 {[%emt 00:00:06]
[%clk 00:00:23]} Kh6 {[%emt 00:00:19] [%clk 00:00:12]} 107. Bxb5 {[%emt
00:00:12] [%clk 00:00:22]} Bf5 {[%emt 00:00:09] [%clk 00:00:13]} 108. Kd6 {[%emt
00:00:19] [%clk 00:00:13]} Kh5 {[%emt 00:00:10] [%clk 00:00:13]} 109. Be2+
{[%emt 00:00:06] [%clk 00:00:17]} Kh6 {[%emt 00:00:07] [%clk 00:00:16]} 110. b5
{[%emt 00:00:08] [%clk 00:00:19]} Be4 {[%emt 00:00:12] [%clk 00:00:14]} 111. b6
{[%emt 00:00:07] [%clk 00:00:22]} Nh8 {[%emt 00:00:12] [%clk 00:00:12]} 112. Ke5
{[%emt 00:00:06] [%clk 00:00:26]} Bb7 {[%emt 00:00:10] [%clk 00:00:12]} 113.
Kxf4 {[%emt 00:00:08] [%clk 00:00:28]} Ng6+ {[%emt 00:00:01] [%clk 00:00:21]}
114. Kf5 {[%emt 00:00:06] [%clk 00:00:31]} Ne7+ {[%emt 00:00:15] [%clk
00:00:16]} 115. Ke5 {[%emt 00:00:11] [%clk 00:00:30]} Kg6 {[%emt 00:00:13] [%clk
00:00:14]} 116. Bd3+ {[%emt 00:00:21] [%clk 00:00:19]} Kh5 {[%emt 00:00:02]
[%clk 00:00:21]} 117. Be4 {[%emt 00:00:07] [%clk 00:00:23]} Ba6 {[%emt 00:00:19]
[%clk 00:00:12]} 118. Bf3 {[%emt 00:00:06] [%clk 00:00:27]} Kh6 {[%emt 00:00:06]
[%clk 00:00:16]} 119. Ke6 {[%emt 00:00:04] [%clk 00:00:32]} Ng6 {[%emt 00:00:06]
[%clk 00:00:20]} 120. Be3 {[%emt 00:00:06] [%clk 00:00:37]} Kg7 {[%emt 00:00:01]
[%clk 00:00:28]} 121. h5 {[%emt 00:00:03] [%clk 00:00:45]} Bc8+ {[%emt 00:00:18]
[%clk 00:00:21]} 122. Kd6 {[%emt 00:00:04] [%clk 00:00:48]} Nh4 {[%emt 00:00:04]
[%clk 00:00:29]} 123. Be4 {[%emt 00:00:08] [%clk 00:00:51]} Kf6 {[%emt 00:00:08]
[%clk 00:00:30]} 124. Kc7 {[%emt 00:00:05] [%clk 00:00:55]} Ba6 {[%emt 00:00:03]
[%clk 00:00:38]} 125. h6 {[%emt 00:00:10] [%clk 00:00:55]} 1-0

[Site "Europe Echecs"]

[Event "Championnat d'Europe Rapide"]
[Date "2024.12.08"]
[White "Kilic, Eray"]
[Black "Grigorov, Grigor"]
[WhiteElo "2459"]
[BlackElo "2497"]
[Round "11.18"]
[Result "1/2-1/2"]
[TimeControl "900+10"]

1. e4 {[%emt 00:00:02] [%clk 00:15:17]} c6 {[%emt 00:00:02] [%clk 00:15:18]} 2.
Nc3 {[%emt 00:00:02] [%clk 00:15:26]} d5 {[%emt 00:00:02] [%clk 00:15:26]} 3.
Nf3 {[%emt 00:00:01] [%clk 00:15:34]} dxe4 {[%emt 00:00:05] [%clk 00:15:32]} 4.
Nxe4 {[%emt 00:00:02] [%clk 00:15:43]} Nf6 {[%emt 00:00:03] [%clk 00:15:39]} 5.
Nxf6+ {[%emt 00:00:09] [%clk 00:15:44]} exf6 {[%emt 00:00:02] [%clk 00:15:46]}
6. d4 {[%emt 00:00:02] [%clk 00:15:52]} Bd6 {[%emt 00:00:09] [%clk 00:15:46]} 7.
Bd3 {[%emt 00:00:02] [%clk 00:16:01]} O-O {[%emt 00:00:05] [%clk 00:15:51]} 8.
O-O {[%emt 00:00:03] [%clk 00:16:08]} Re8 {[%emt 00:00:44] [%clk 00:15:17]} 9.
h3 {[%emt 00:00:01] [%clk 00:16:17]} Nd7 {[%emt 00:00:04] [%clk 00:15:24]} 10.
Re1 {[%emt 00:00:01] [%clk 00:16:25]} Rxe1+ {[%emt 00:00:06] [%clk 00:15:28]}
11. Qxe1 {[%emt 00:00:01] [%clk 00:16:33]} Nf8 {[%emt 00:00:03] [%clk 00:15:36]}
12. c4 {[%emt 00:00:02] [%clk 00:16:41]} Be6 {[%emt 00:00:07] [%clk 00:15:38]}
13. Be3 {[%emt 00:00:02] [%clk 00:16:50]} Qd7 {[%emt 00:00:08] [%clk 00:15:40]}
14. Qf1 {[%emt 00:00:02] [%clk 00:16:58]} Ng6 {[%emt 00:00:20] [%clk 00:15:29]}
15. Rd1 {[%emt 00:00:02] [%clk 00:17:07]} Bf5 {[%emt 00:01:27] [%clk 00:14:12]}
16. d5 {[%emt 00:00:54] [%clk 00:16:24]} c5 {[%emt 00:00:24] [%clk 00:13:57]}
17. b4 {[%emt 00:00:09] [%clk 00:16:24]} b6 {[%emt 00:00:05] [%clk 00:14:03]}
18. bxc5 {[%emt 00:00:03] [%clk 00:16:32]} bxc5 {[%emt 00:00:04] [%clk
00:14:08]} 19. Rb1 {[%emt 00:00:04] [%clk 00:16:38]} Nf4 {[%emt 00:00:36] [%clk
00:13:42]} 20. Bxf4 {[%emt 00:01:01] [%clk 00:15:47]} Bxf4 {[%emt 00:00:02]
[%clk 00:13:50]} 21. Rb5 {[%emt 00:00:54] [%clk 00:15:03]} Bd6 {[%emt 00:00:18]
[%clk 00:13:42]} 22. Qb1 {[%emt 00:01:19] [%clk 00:13:55]} Bxd3 {[%emt 00:02:31]
[%clk 00:11:20]} 23. Qxd3 {[%emt 00:00:02] [%clk 00:14:03]} Re8 {[%emt 00:00:03]
[%clk 00:11:26]} 24. Rb2 {[%emt 00:01:07] [%clk 00:13:06]} g6 {[%emt 00:00:22]
[%clk 00:11:15]} 25. Re2 {[%emt 00:01:14] [%clk 00:12:03]} Rb8 {[%emt 00:00:14]
[%clk 00:11:11]} 26. Nd2 {[%emt 00:00:42] [%clk 00:11:30]} f5 {[%emt 00:00:55]
[%clk 00:10:26]} 27. g3 {[%emt 00:00:44] [%clk 00:10:55]} h5 {[%emt 00:00:57]
[%clk 00:09:39]} 28. Kg2 {[%emt 00:00:22] [%clk 00:10:44]} Qd8 {[%emt 00:00:30]
[%clk 00:09:18]} 29. h4 {[%emt 00:00:30] [%clk 00:10:25]} Qf6 {[%emt 00:00:36]
[%clk 00:08:52]} 30. Nb3 {[%emt 00:00:27] [%clk 00:10:09]} Kg7 {[%emt 00:00:40]
[%clk 00:08:21]} 31. f4 {[%emt 00:00:42] [%clk 00:09:37]} Rb4 {[%emt 00:00:37]
[%clk 00:07:55]} 32. Rc2 {[%emt 00:00:01] [%clk 00:09:45]} Qe7 {[%emt 00:00:39]
[%clk 00:07:25]} 33. Re2 {[%emt 00:00:33] [%clk 00:09:22]} Qf6 {[%emt 00:00:05]
[%clk 00:07:31]} 34. Rc2 {[%emt 00:00:01] [%clk 00:09:31]} Qe7 {[%emt 00:00:03]
[%clk 00:07:38]} 35. Kf3 {[%emt 00:00:32] [%clk 00:09:08]} Ra4 {[%emt 00:00:31]
[%clk 00:07:18]} 36. Qc3+ {[%emt 00:00:16] [%clk 00:09:01]} Qf6 {[%emt 00:00:52]
[%clk 00:06:37]} 37. Qe3 {[%emt 00:01:19] [%clk 00:07:51]} Ra3 {[%emt 00:00:39]
[%clk 00:06:10]} 38. Qc1 {[%emt 00:00:29] [%clk 00:07:30]} Ra4 {[%emt 00:00:45]
[%clk 00:05:36]} 39. Qe3 {[%emt 00:00:19] [%clk 00:07:20]} Ra3 {[%emt 00:00:17]
[%clk 00:05:30]} 40. Qc1 {[%emt 00:00:27] [%clk 00:07:03]} Ra4 {[%emt 00:00:07]
[%clk 00:05:33]} 41. Qe3 {[%emt 00:00:19] [%clk 00:06:54]} Ra3 {[%emt 00:00:08]
[%clk 00:05:35]} 1/2-1/2

[Site "Europe Echecs"]

[Event "Championnat d'Europe Rapide"]
[Date "2024.12.08"]
[White "Gavrilescu, David"]
[Black "Mohr, Georg"]
[WhiteElo "2549"]
[BlackElo "2385"]
[Round "11.19"]
[Result "1-0"]
[TimeControl "900+10"]

1. e4 {[%emt 00:01:33] [%clk 00:13:46]} c5 {[%emt 00:00:03] [%clk 00:15:18]} 2.
Nf3 {[%emt 00:00:03] [%clk 00:13:53]} Nc6 {[%emt 00:00:03] [%clk 00:15:24]} 3.
Bb5 {[%emt 00:00:02] [%clk 00:14:01]} d6 {[%emt 00:00:46] [%clk 00:14:49]} 4.
O-O {[%emt 00:00:04] [%clk 00:14:07]} Bd7 {[%emt 00:00:06] [%clk 00:14:53]} 5.
Re1 {[%emt 00:00:02] [%clk 00:14:15]} e6 {[%emt 00:00:16] [%clk 00:14:46]} 6. c3
{[%emt 00:00:26] [%clk 00:13:59]} a6 {[%emt 00:00:14] [%clk 00:14:42]} 7. Bf1
{[%emt 00:00:09] [%clk 00:14:00]} Nf6 {[%emt 00:00:04] [%clk 00:14:48]} 8. d4
{[%emt 00:01:24] [%clk 00:12:46]} cxd4 {[%emt 00:00:02] [%clk 00:14:57]} 9. cxd4
{[%emt 00:00:01] [%clk 00:12:55]} d5 {[%emt 00:00:25] [%clk 00:14:42]} 10. exd5
{[%emt 00:00:19] [%clk 00:12:45]} Nxd5 {[%emt 00:00:02] [%clk 00:14:50]} 11. Nc3
{[%emt 00:00:01] [%clk 00:12:54]} Be7 {[%emt 00:03:21] [%clk 00:11:39]} 12. Nxd5
{[%emt 00:05:12] [%clk 00:07:52]} exd5 {[%emt 00:00:02] [%clk 00:11:48]} 13. Bg5
{[%emt 00:00:01] [%clk 00:08:00]} O-O {[%emt 00:00:45] [%clk 00:11:13]} 14. Bxe7
{[%emt 00:00:02] [%clk 00:08:08]} Nxe7 {[%emt 00:00:01] [%clk 00:11:22]} 15. Qb3
{[%emt 00:00:02] [%clk 00:08:17]} Rb8 {[%emt 00:00:54] [%clk 00:10:38]} 16. Bd3
{[%emt 00:00:20] [%clk 00:08:07]} h6 {[%emt 00:00:47] [%clk 00:10:01]} 17. Rac1
{[%emt 00:00:57] [%clk 00:07:19]} Be6 {[%emt 00:00:22] [%clk 00:09:49]} 18. h3
{[%emt 00:00:54] [%clk 00:06:35]} Qd6 {[%emt 00:00:03] [%clk 00:09:56]} 19. Bb1
{[%emt 00:01:11] [%clk 00:05:34]} Rfd8 {[%emt 00:00:31] [%clk 00:09:36]} 20. Ne5
{[%emt 00:00:19] [%clk 00:05:24]} Bf5 {[%emt 00:02:00] [%clk 00:07:46]} 21. Bxf5
{[%emt 00:01:18] [%clk 00:04:16]} Nxf5 {[%clk 00:07:55]} 22. Qf3 {[%emt
00:00:02] [%clk 00:04:25]} Qf6 {[%emt 00:00:03] [%clk 00:08:00]} 23. Rc7 {[%emt
00:00:07] [%clk 00:04:30]} Nd6 {[%emt 00:04:12] [%clk 00:03:57]} 24. Qxf6 {[%emt
00:00:03] [%clk 00:04:38]} gxf6 {[%clk 00:04:06]} 25. Nd7 {[%emt 00:00:02] [%clk
00:04:47]} Nb5 {[%emt 00:00:18] [%clk 00:03:58]} 26. Nxf6+ {[%emt 00:00:02]
[%clk 00:04:54]} Kg7 {[%clk 00:04:07]} 27. Nh5+ {[%emt 00:00:03] [%clk
00:05:01]} Kf8 {[%emt 00:00:31] [%clk 00:03:47]} 28. Rc5 {[%emt 00:01:29] [%clk
00:03:43]} Nxd4 {[%emt 00:00:03] [%clk 00:03:53]} 29. Re5 {[%emt 00:00:21] [%clk
00:03:32]} Ne6 {[%emt 00:02:51] [%clk 00:01:12]} 30. Rcxd5 {[%emt 00:00:02]
[%clk 00:03:40]} Rxd5 {[%emt 00:00:02] [%clk 00:01:21]} 31. Rxd5 {[%emt
00:00:01] [%clk 00:03:48]} Rc8 {[%clk 00:01:31]} 32. f4 {[%emt 00:02:13] [%clk
00:01:45]} Rc1+ {[%emt 00:00:36] [%clk 00:01:05]} 33. Kh2 {[%emt 00:00:01] [%clk
00:01:54]} Rc2 {[%emt 00:00:01] [%clk 00:01:14]} 34. f5 {[%emt 00:00:01] [%clk
00:02:03]} Ng5 {[%emt 00:00:04] [%clk 00:01:20]} 35. h4 {[%emt 00:01:34] [%clk
00:00:38]} Ne4 {[%emt 00:00:18] [%clk 00:01:11]} 36. Rd4 {[%emt 00:00:03] [%clk
00:00:46]} Nf2 {[%emt 00:00:08] [%clk 00:01:13]} 37. f6 {[%emt 00:00:33] [%clk
00:00:23]} Kg8 {[%emt 00:00:14] [%clk 00:01:09]} 38. Rb4 {[%emt 00:00:21] [%clk
00:00:12]} b5 {[%emt 00:00:02] [%clk 00:01:18]} 39. Kg3 {[%emt 00:00:02] [%clk
00:00:20]} Nd3 {[%emt 00:00:12] [%clk 00:01:15]} 40. Rg4+ {[%emt 00:00:04] [%clk
00:00:26]} Kh8 {[%emt 00:00:13] [%clk 00:01:12]} 41. Rd4 {[%emt 00:00:17] [%clk
00:00:19]} Ne1 {[%emt 00:00:22] [%clk 00:01:00]} 42. Nf4 {[%emt 00:00:03] [%clk
00:00:26]} Rc8 {[%emt 00:00:39] [%clk 00:00:32]} 43. Rd7 {[%emt 00:00:07] [%clk
00:00:28]} Kg8 {[%emt 00:00:01] [%clk 00:00:41]} 44. Nd5 {[%emt 00:00:12] [%clk
00:00:27]} Rc2 {[%emt 00:00:04] [%clk 00:00:47]} 45. Nf4 {[%emt 00:00:07] [%clk
00:00:29]} Rc8 {[%emt 00:00:02] [%clk 00:00:56]} 46. h5 {[%emt 00:00:02] [%clk
00:00:37]} Nc2 {[%emt 00:00:13] [%clk 00:00:53]} 47. Nd5 {[%emt 00:00:02] [%clk
00:00:45]} Rc5 {[%emt 00:00:06] [%clk 00:00:55]} 48. b4 {[%emt 00:00:04] [%clk
00:00:52]} Rc4 {[%emt 00:00:05] [%clk 00:00:59]} 49. Rd8+ {[%emt 00:00:03] [%clk
00:01:00]} Kh7 {[%emt 00:00:05] [%clk 00:01:05]} 50. Rf8 {[%emt 00:00:01] [%clk
00:01:09]} Rd4 {[%emt 00:00:06] [%clk 00:01:09]} 51. Rxf7+ {[%emt 00:00:01]
[%clk 00:01:17]} Kg8 {[%clk 00:01:18]} 52. Rg7+ {[%emt 00:00:01] [%clk
00:01:26]} Kf8 {[%emt 00:00:01] [%clk 00:01:27]} 53. Nf4 {[%emt 00:00:02] [%clk
00:01:34]} 1-0

[Site "Europe Echecs"]